bitfinex-derivatives/quotes_ETHF0:USTF0_20250331
["timestamp","ask_amount","ask_price","bid_price","bid_amount"]
[1743417674145,1.11212,1798.5,1798.4,0.7428]
[1743417674341,3.2078,1798.7,1798.5,1.1121]
[1743417674546,1.49,1798.6,1798.5,1.1121]
[1743417676152,1.49,1798.6,1798.4,0.0083491]
[1743417676153,1.11212,1798.5,1798.4,0.0083491]
[1743417676350,1.11237,1798.1,1798.0,1.1124]
[1743417676545,4.32015,1798.2,1798.1,1.11237]
[1743417676749,3.46589,1798.5,1798.2,1.11228]
[1743417676954,1.3763,1798.4,1798.3,2.58745]
[1743417678153,1.3763,1798.4,1798.3,3.33005]
[1743417678349,0.0083491,1798.5,1798.4,1.11218]
[1743417678562,0.0083491,1798.5,1798.4,2.48758]
[1743417678755,1.3802491,1798.5,1798.4,2.48758]
[1743417679859,0.0083491,1798.5,1798.4,2.48758]
[1743417680552,1.3802491,1798.5,1798.4,2.48758]
[1743417680745,1.3802491,1798.5,1798.4,1.11218]
[1743417681053,2.4923991,1798.5,1798.4,1.11218]
[1743417681956,2.4923991,1798.5,1798.4,2.58088]
[1743417682151,1.11218,1798.4,1798.3,0.6996]
[1743417682357,2.54808,1798.4,1798.3,3.28055]
[1743417682953,1.4359,1798.4,1798.3,3.28055]
[1743417683151,2.54808,1798.4,1798.3,3.28055]
[1743417683552,1.4359,1798.4,1798.3,3.28055]
[1743417683759,2.54808,1798.4,1798.3,3.28055]
[1743417684053,1.4359,1798.4,1798.3,3.28055]
[1743417684258,2.54808,1798.4,1798.3,3.28055]
[1743417684459,1.4359,1798.4,1798.3,3.28055]
[1743417686358,2.54808,1798.4,1798.3,3.28055]
[1743417686762,1.4359,1798.4,1798.3,3.28055]
[1743417686964,2.54808,1798.4,1798.3,3.28055]
[1743417687258,1.4359,1798.4,1798.3,3.28055]
[1743417687556,0.0083491,1798.5,1798.4,1.11218]
[1743417687758,1.4165491,1798.5,1798.4,2.58918]
[1743417692062,2.5286691,1798.5,1798.4,2.58918]
[1743417692259,1.4165491,1798.5,1798.4,2.58918]
[1743417695865,0.0083491,1798.5,1798.4,2.58918]
[1743417696059,0.0083491,1798.5,1798.4,3.29398]
[1743417697958,7.8227,1799.0,1798.9,1.11187]
[1743417698169,9.63171,1799.0,1798.9,1.11187]
[1743417698661,1.11194,1798.9,1798.8,1.11189]
[1743417699269,2.60674,1798.9,1798.8,2.50249]
[1743417700161,1.11201,1798.8,1798.4,3.2078]
[1743417700358,1.11211,1798.6,1798.5,1.11204]
[1743417700660,5.80408,1798.8,1798.7,1.112]
[1743417700968,2.77976,1798.9,1798.7,1.112]
[1743417700969,9.6400791,1799.0,1798.9,1.11187]
[1743417701764,1.11187,1798.9,1798.8,2.60739]
[1743417702460,1.11187,1798.9,1798.8,1.4955]
[1743417702661,1.11194,1798.8,1798.7,1.11194]
[1743417702861,4.31974,1798.8,1798.7,1.11194]
[1743417703566,1.11206,1798.7,1798.6,1.11201]
[1743417704568,1.11212,1798.6,1798.5,1.11207]
[1743417704768,5.78862,1798.6,1798.5,1.11207]
[1743417705472,1.4687,1798.6,1798.5,2.52457]
[1743417705865,2.58076,1798.6,1798.5,2.52457]
[1743417707171,3.2078,1798.8,1798.5,1.4125]
[1743417707374,5.7752,1798.8,1798.7,1.112]
[1743417707669,5.77514,1798.8,1798.7,1.112]
[1743417708069,1.4554,1798.8,1798.7,1.112]
[1743417708272,4.6632,1798.8,1798.7,1.112]
[1743417708662,5.77514,1798.8,1798.7,1.112]
[1743417709168,0.0083491,1799.0,1798.9,1.11187]
[1743417709769,0.0083491,1799.0,1798.9,1.84967]
[1743417711373,0.0083491,1799.0,1798.9,3.33267]
[1743417711566,0.7063,1799.3,1799.2,1.11169]
[1743417712579,0.7073,1799.4,1799.3,1.11163]
[1743417712878,3.2078,1799.6,1799.5,1.1115]
[1743417713172,3.2078,1799.8,1799.5,1.1115]
[1743417713376,3.2078,1799.8,1799.7,1.11138]
[1743417713576,3.2161491,1799.8,1799.7,1.11138]
[1743417713977,4.3274691,1799.8,1799.7,1.11138]
[1743417714179,3.9523491,1799.8,1799.5,0.6983]
[1743417714377,3.9523491,1799.8,1799.6,1.1114]
[1743417714577,6.4523491,1799.8,1799.2,0.0083491]
[1743417714771,4.31943,1799.3,1799.2,0.0083491]
[1743417714978,4.31943,1799.3,1799.2,1.1200391]
[1743417715172,4.31943,1799.3,1799.2,0.0083491]
[1743417715876,6.70381,1799.5,1799.4,1.11157]
[1743417715877,3.2078,1799.5,1799.4,1.11157]
[1743417716174,3.9047,1799.5,1799.4,1.11157]
[1743417716773,4.7201,1799.5,1799.4,1.11157]
[1743417717079,4.7201,1799.5,1799.4,1.80637]
[1743417718180,2.6238,1799.5,1799.4,1.11157]
[1743417718381,4.7201,1799.5,1799.3,1.438]
[1743417718579,1.4793,1799.4,1799.3,2.54963]
[1743417719473,3.2078,1799.6,1799.3,4.21698]
[1743417719675,1.1115,1799.5,1799.4,2.62831]
[1743417719874,2.5908,1799.5,1799.4,2.62831]
[1743417720083,2.5908,1799.5,1799.4,1.11151]
[1743417720382,1.11157,1799.4,1799.3,1.11157]
[1743417720579,1.11163,1799.3,1799.2,0.0083491]
[1743417720779,1.4833,1799.3,1799.2,1.1200391]
[1743417720972,2.9219,1799.3,1799.2,1.1200391]
[1743417721375,2.1859,1799.3,1799.2,1.1200391]
[1743417721775,2.1859,1799.3,1799.2,1.8195391]
[1743417722377,3.29753,1799.3,1799.2,1.1200391]
[1743417722772,3.29753,1799.3,1799.2,0.0083491]
[1743417723083,3.29753,1799.3,1799.2,1.1200391]
[1743417723686,3.29753,1799.3,1799.2,0.0083491]
[1743417723889,3.29753,1799.3,1799.2,1.1200391]
[1743417724392,3.29753,1799.3,1799.2,0.0083491]
[1743417728183,1.11181,1799.0,1798.9,1.11184]
[1743417728383,1.1121,1798.6,1798.2,3.2078]
[1743417728580,4.3199,1798.6,1798.5,1.11207]
[1743417728786,3.2078,1798.6,1798.3,1.412]
[1743417729087,2.53918,1798.5,1798.4,1.11218]
[1743417730084,3.2161491,1798.6,1798.5,1.11212]
[1743417730387,4.3282091,1798.6,1798.5,1.11212]
[1743417731290,3.2161491,1798.6,1798.5,1.11212]
[1743417731788,4.3282091,1798.6,1798.5,1.11212]
[1743417732382,3.2161491,1798.6,1798.5,1.11212]
[1743417732579,3.2161491,1798.6,1798.5,1.79892]
[1743417733281,3.2161491,1798.6,1798.5,2.53772]
[1743417734891,4.3282091,1798.6,1798.5,2.53772]
[1743417735498,4.3282091,1798.6,1798.5,1.79892]
[1743417736488,4.3282091,1798.6,1798.5,0.6868]
[1743417736694,1.11212,1798.5,1798.4,1.11218]
[1743417736992,0.7228,1798.5,1798.4,2.59858]
[1743417737392,4.3282591,1798.6,1798.5,1.11212]
[1743417737588,4.3282591,1798.6,1798.5,2.59852]
[1743417737988,1.11212,1798.5,1798.4,1.11215]
[1743417738188,1.11218,1798.4,1798.3,2.6069391]
[1743417738393,1.81048,1798.5,1798.4,1.11218]
[1743417738592,1.81048,1798.5,1798.4,2.59858]
[1743417738792,0.6983,1798.5,1798.4,2.59858]
[1743417739487,1.81042,1798.5,1798.4,2.59858]
[1743417740896,0.6983,1798.5,1798.4,2.59858]
[1743417741095,1.81042,1798.5,1798.4,2.59858]
[1743417742093,1.81042,1798.5,1798.4,1.4864]
[1743417742299,1.11218,1798.4,1798.3,1.1205991]
[1743417742492,1.11218,1798.4,1798.3,2.6209991]
[1743417744500,1.81047,1798.5,1798.4,1.11218]
[1743417744795,0.6983,1798.5,1798.0,3.2078]
[1743417745000,3.2078,1798.2,1798.1,1.11237]
[1743417745193,1.11241,1798.1,1798.0,1.1124]
[1743417745387,7.1328,1798.2,1798.1,1.11237]
[1743417745593,5.03731,1798.2,1798.1,1.11237]
[1743417745796,1.11231,1798.2,1798.1,1.11237]
[1743417746596,1.11231,1798.2,1798.1,0.7062]
[1743417746799,1.11231,1798.2,1798.1,1.81857]
[1743417747199,1.11231,1798.2,1798.1,2.54767]
[1743417747405,1.11231,1798.2,1798.1,1.4353]
[1743417747702,1.11237,1798.1,1798.0,2.5279291]
[1743417747890,2.53357,1798.1,1798.0,3.2152291]
[1743417749394,3.2078,1798.2,1798.1,1.11237]
[1743417749696,3.2078,1798.2,1798.1,2.52257]
[1743417749895,1.11237,1798.1,1798.0,1.1207391]
[1743417750090,1.11237,1798.1,1798.0,2.5309391]
[1743417750091,2.60377,1798.1,1798.0,2.5309391]
[1743417751196,2.60377,1798.1,1798.0,0.0083491]
[1743417751397,1.11272,1797.6,1797.3,2.78208]
[1743417751602,3.2078,1797.8,1797.5,1.44]
[1743417751803,1.11257,1797.8,1797.5,4.22178]
[1743417752002,2.51127,1797.8,1797.7,1.11255]
[1743417752400,2.51127,1797.8,1797.7,1.11262]
[1743417752594,5.71907,1797.8,1797.7,1.11262]
[1743417753607,1.11262,1797.7,1797.6,2.5609791]
[1743417753808,2.51132,1797.7,1797.6,2.5609791]
[1743417754196,2.51132,1797.7,1797.6,1.4483491]
[1743417754410,2.51132,1797.7,1797.6,0.0083491]
[1743417754609,1.1129,1797.3,1797.2,1.11289]
[1743417754817,8.24663,1797.4,1797.3,1.11286]
[1743417755015,8.24663,1797.4,1797.3,0.7388]
[1743417755620,8.24663,1797.4,1797.3,2.1359]
[1743417756921,8.24663,1797.4,1797.2,1.1212291]
[1743417756922,1.11286,1797.3,1797.2,1.1212291]
[1743417757118,2.48776,1797.3,1797.2,0.0083491]
[1743417757617,3.94016,1797.3,1797.2,0.0083491]
[1743417758210,3.94016,1797.3,1797.2,1.3961491]
[1743417758610,3.94016,1797.3,1797.2,2.5090791]
[1743417758820,3.2078,1797.4,1797.3,1.11286]
[1743417759029,5.03974,1797.5,1797.4,1.1128]
[1743417759223,5.74181,1797.6,1797.5,1.11274]
[1743417759420,1.1128,1797.5,1797.4,2.50055]
[1743417760224,2.5341,1797.5,1797.4,2.50055]
[1743417760423,2.5341,1797.5,1797.4,1.3878]
[1743417760823,2.5341,1797.5,1797.4,2.5006]
[1743417761224,2.5341,1797.5,1797.4,1.3878]
[1743417761920,1.1128,1797.4,1797.3,2.51463]
[1743417762225,2.5562,1797.4,1797.3,2.51463]
[1743417763326,2.5562,1797.4,1797.3,2.7946]
[1743417763524,2.5562,1797.4,1797.2,0.0083491]
[1743417763525,1.11286,1797.3,1797.2,1.1212791]
[1743417763726,3.28696,1797.3,1797.2,1.1212791]
[1743417764325,6.51266,1797.3,1797.2,0.0083491]
[1743417764525,6.51266,1797.3,1797.2,1.1212791]
[1743417765034,6.51266,1797.3,1797.2,1.8183791]
[1743417765625,6.51266,1797.3,1797.2,0.7054491]
[1743417765924,6.51266,1797.3,1797.2,0.0083491]
[1743417766122,6.51266,1797.3,1797.2,1.1212791]
[1743417766322,6.51266,1797.3,1797.2,0.0083491]
[1743417766827,6.51266,1797.3,1797.2,1.1212791]
[1743417767028,6.51266,1797.3,1797.2,2.6364791]
[1743417768329,6.51266,1797.3,1797.2,0.0083491]
[1743417770722,2.58566,1797.3,1797.2,1.4599491]
[1743417771034,2.58566,1797.3,1797.2,2.5728791]
[1743417773432,1.4728,1797.3,1797.2,2.5728791]
[1743417773625,2.58566,1797.3,1797.2,2.5728791]
[1743417774935,1.4728,1797.3,1797.2,1.1212791]
[1743417775135,2.58566,1797.3,1797.2,1.1212791]
[1743417777230,2.58566,1797.3,1797.2,0.0083491]
[1743417778440,2.58566,1797.3,1797.2,1.1212791]
[1743417778742,1.4728,1797.3,1797.2,2.5687791]
[1743417778939,1.4728,1797.3,1797.2,3.3097791]
[1743417779139,2.58566,1797.3,1797.2,3.3097791]
[1743417780241,2.58566,1797.3,1797.2,2.1968491]
[1743417780441,2.58566,1797.3,1797.2,3.3097791]
[1743417781038,2.58566,1797.3,1797.2,2.1968491]
[1743417781236,2.58566,1797.3,1797.2,0.0083491]
[1743417781643,2.58566,1797.3,1797.2,2.5339791]
[1743417781944,2.58566,1797.3,1797.2,1.4210491]
[1743417782342,2.58566,1797.3,1797.2,0.0083491]
[1743417783648,2.58566,1797.3,1797.2,1.1212791]
[1743417783940,2.58566,1797.3,1797.2,3.1835791]
[1743417784138,3.2078,1797.6,1797.5,1.11274]
[1743417784340,4.6923,1797.8,1797.7,1.11262]
[1743417784646,5.80485,1797.8,1797.7,1.11262]
[1743417785141,5.80485,1797.8,1797.7,1.85252]
[1743417785440,5.80485,1797.8,1797.7,3.33132]
[1743417785441,1.4845,1797.8,1797.7,3.33132]
[1743417785646,4.6923,1797.8,1797.7,3.33132]
[1743417785837,1.4845,1797.8,1797.7,3.33132]
[1743417786239,0.0083491,1797.9,1797.8,1.11255]
[1743417786545,0.0083491,1797.9,1797.8,2.59135]
[1743417786937,0.0083491,1797.9,1797.8,30.19135]
[1743417787338,1.1208391,1797.9,1797.8,30.19135]
[1743417787644,0.0083491,1797.9,1797.8,2.59135]
[1743417790845,1.1208391,1797.9,1797.8,2.59135]
[1743417791148,2.5911391,1797.9,1797.8,2.59135]
[1743417791752,1.4786491,1797.9,1797.8,2.59135]
[1743417792748,0.0083491,1797.9,1797.8,2.59135]
[1743417801648,1.1208391,1797.9,1797.8,2.59135]
[1743417802356,0.0083491,1797.9,1797.8,2.59135]
[1743417802745,2.4957391,1797.9,1797.8,2.59135]
[1743417803253,1.3832491,1797.9,1797.8,2.59135]
[1743417803457,2.4957391,1797.9,1797.8,2.59135]
[1743417804043,1.11255,1797.8,1797.7,1.11256]
[1743417804249,1.11268,1797.7,1797.6,1.11263]
[1743417804742,2.54878,1797.7,1797.6,1.11263]
[1743417806349,1.4361,1797.7,1797.6,1.11263]
[1743417806752,2.54872,1797.7,1797.6,1.11263]
[1743417807558,1.4361,1797.7,1797.6,1.11263]
[1743417808061,2.54872,1797.7,1797.6,1.11263]
[1743417810460,2.54872,1797.7,1797.5,1.11271]
[1743417810461,1.11274,1797.6,1797.5,1.11271]
[1743417810665,2.62874,1797.6,1797.5,1.11271]
[1743417810956,1.11286,1797.3,1797.2,1.1212591]
[1743417811258,4.32066,1797.3,1797.2,1.1212591]
[1743417811464,8.24566,1797.3,1797.2,1.1212591]
[1743417811959,9.76166,1797.3,1797.2,1.1212591]
[1743417812662,9.76166,1797.3,1797.2,0.0083491]
[1743417812860,9.76166,1797.3,1797.2,1.1212791]
[1743417813060,6.55386,1797.3,1797.2,1.1212791]
[1743417815257,6.55386,1797.3,1797.2,0.0083491]
[1743417815460,5.441,1797.3,1797.2,1.1212791]
[1743417815659,6.55386,1797.3,1797.2,1.1212791]
[1743417816664,6.55386,1797.3,1797.2,0.0083491]
[1743417817060,6.55386,1797.3,1797.2,1.1212791]
[1743417820262,9.76166,1797.3,1797.2,0.0083491]
[1743417821165,6.55386,1797.3,1797.2,1.1212791]
[1743417821463,1.516,1797.3,1797.2,1.1212791]
[1743417821663,6.55386,1797.3,1797.2,2.5632791]
[1743417822770,0.7233,1797.5,1797.4,1.1128]
[1743417822966,1.11271,1797.6,1797.5,1.11268]
[1743417823268,2.50281,1797.6,1797.5,1.11268]
[1743417824068,1.3901,1797.6,1797.5,1.11268]
[1743417824268,1.3901,1797.6,1797.5,1.81588]
[1743417824473,2.50278,1797.6,1797.5,1.81588]
[1743417824777,1.3901,1797.6,1797.5,1.81588]
[1743417825170,2.50278,1797.6,1797.5,1.81588]
[1743417825473,2.50278,1797.6,1797.5,1.11268]
[1743417830780,1.11274,1797.5,1797.4,2.53744]
[1743417831073,1.11286,1797.3,1797.2,0.0083491]
[1743417831279,4.32066,1797.3,1797.2,0.0083491]
[1743417831671,6.54496,1797.3,1797.2,0.0083491]
[1743417833191,6.54496,1797.3,1797.2,1.1212791]
[1743417833575,1.4962,1797.3,1797.2,1.1212791]
[1743417834072,1.4962,1797.3,1797.2,1.8774791]
[1743417834783,5.03685,1797.4,1797.3,1.11286]
[1743417834982,5.03685,1797.4,1797.3,3.32336]
[1743417835182,6.47565,1797.4,1797.3,3.32336]
[1743417836884,6.47565,1797.4,1797.3,2.2105]
[1743417837081,6.47565,1797.4,1797.3,3.32336]
[1743417839181,6.47565,1797.4,1797.3,2.60546]
[1743417841089,1.4388,1797.4,1797.3,2.60546]
[1743417841284,5.98922,1797.8,1797.4,1.11274]
[1743417841486,1.11278,1797.5,1797.4,2.59074]
[1743417842579,1.3855,1797.6,1797.5,1.11274]
[1743417842784,1.3855,1797.6,1797.5,3.96554]
[1743417843882,2.49818,1797.6,1797.5,3.96554]
[1743417844085,1.3855,1797.6,1797.5,3.96554]
[1743417845189,5.03666,1797.7,1797.6,1.11268]
[1743417845390,5.03666,1797.7,1797.6,2.50248]
[1743417845589,6.46716,1797.7,1797.6,2.50248]
[1743417845785,1.4305,1797.7,1797.6,2.50248]
[1743417845991,3.9313491,1797.9,1797.8,1.11255]
[1743417846191,0.0083491,1797.9,1797.8,1.11255]
[1743417846691,0.0083491,1797.9,1797.8,1.84465]
[1743417847884,1.4740491,1797.9,1797.8,1.84465]
[1743417850496,2.5865391,1797.9,1797.8,1.84465]
[1743417851293,1.4740491,1797.9,1797.8,1.84465]
[1743417851799,2.5865391,1797.9,1797.8,1.84465]
[1743417852097,1.4740491,1797.9,1797.8,1.84465]
[1743417853098,0.0083491,1797.9,1797.8,1.84465]
[1743417854194,0.0083491,1797.9,1797.8,5.05245]
[1743417855900,0.0083491,1797.9,1797.8,6.44255]
[1743417857890,0.6873,1798.4,1798.3,1.11225]
[1743417858093,1.11216,1798.5,1798.4,1.11218]
[1743417858291,5.74451,1798.6,1798.5,1.11212]
[1743417858798,4.31986,1798.6,1798.5,1.11212]
[1743417859200,5.81266,1798.6,1798.5,1.11212]
[1743417859702,1.4928,1798.6,1798.5,1.11212]
[1743417860500,1.11212,1798.5,1798.4,0.0083491]
[1743417860698,1.11236,1798.2,1797.9,2.78114]
[1743417860896,1.11236,1798.2,1798.1,1.11232]
[1743417862296,1.84468,1798.3,1798.2,1.11231]
[1743417862496,0.7324,1798.3,1798.2,1.11231]
[1743417862698,1.84465,1798.3,1798.2,1.11231]
[1743417863800,0.7324,1798.3,1798.2,1.11231]
[1743417864003,1.84465,1798.3,1798.2,1.11231]
[1743417864903,1.11231,1798.2,1798.1,2.52225]
[1743417865102,0.7324,1798.3,1798.1,1.4099]
[1743417865403,1.84471,1798.3,1798.2,1.11231]
[1743417866802,1.11231,1798.2,1798.1,2.52222]
[1743417868399,1.11231,1798.2,1798.1,2.52223]
[1743417869197,1.11231,1798.2,1798.1,1.11233]
[1743417869402,1.11237,1798.1,1798.0,1.1207791]
[1743417869907,1.86297,1798.1,1798.0,0.0083491]
[1743417870300,5.78197,1798.1,1798.0,0.0083491]
[1743417870611,1.11268,1797.7,1797.6,1.11265]
[1743417871206,1.11268,1797.6,1797.5,1.11272]
[1743417871710,11.37243,1797.8,1797.6,1.11268]
[1743417871711,1.1210091,1797.7,1797.6,1.11268]
[1743417872211,1.11269,1797.6,1797.5,1.11269]
[1743417873008,0.0083491,1797.7,1797.6,1.11268]
[1743417874707,1.11243,1798.0,1797.9,1.11249]
[1743417875407,8.23921,1798.1,1798.0,1.11243]
[1743417876314,5.76591,1798.1,1798.0,1.11243]
[1743417876504,1.11245,1798.0,1797.9,1.11245]
[1743417876701,2.55815,1798.0,1797.9,1.11245]
[1743417877408,1.4457,1798.0,1797.8,1.4627]
[1743417877604,1.4457,1797.9,1797.8,2.57525]
[1743417878608,1.1124,1798.1,1797.8,2.57525]
[1743417878806,1.1124,1798.1,1798.0,1.11243]
[1743417879605,1.1124,1798.1,1798.0,1.84643]
[1743417880005,2.4957,1798.1,1798.0,3.22083]
[1743417881809,1.3833,1798.1,1798.0,3.22083]
[1743417882507,2.49567,1798.1,1798.0,3.22083]
[1743417882913,2.49567,1798.1,1798.0,2.48683]
[1743417883213,1.11255,1797.8,1797.7,1.11256]
[1743417883913,1.4698,1797.8,1797.7,1.11256]
[1743417884310,5.03049,1797.9,1797.8,1.11255]
[1743417885015,6.50029,1797.9,1797.8,1.11255]
[1743417886414,2.58229,1797.9,1797.8,1.11255]
[1743417886712,1.4698,1797.9,1797.8,1.11255]
[1743417886910,1.4698,1797.9,1797.8,1.84575]
[1743417887307,2.58229,1797.9,1797.8,1.84575]
[1743417887512,1.4698,1797.9,1797.8,1.84575]
[1743417888408,4.32025,1798.0,1797.9,1.11249]
[1743417888603,5.80565,1798.0,1797.9,3.24129]
[1743417888808,5.80563,1798.0,1797.9,3.24129]
[1743417890411,4.6932,1798.0,1797.9,3.24129]
[1743417890612,3.2078,1798.0,1797.9,3.24129]
[1743417890816,6.5230691,1798.2,1798.1,1.11237]
[1743417891709,6.5230691,1798.2,1798.1,1.85097]
[1743417893224,6.5230691,1798.2,1798.1,0.7386]
[1743417893519,6.5230691,1798.2,1798.1,1.85097]
[1743417893718,6.5230691,1798.2,1798.1,3.29427]
[1743417895721,6.5230691,1798.2,1798.1,2.1819]
[1743417895916,6.5230691,1798.2,1798.1,2.55567]
[1743417896115,7.2619691,1798.2,1798.1,2.55567]
[1743417896509,7.2619691,1798.2,1798.1,1.11237]
[1743417899011,1.11237,1798.1,1798.0,1.4911]
[1743417899325,5.81767,1798.1,1798.0,1.4911]
[1743417899524,1.11243,1798.0,1797.9,2.59714]
[1743417899725,1.11249,1797.9,1797.8,1.4015]
[1743417899922,1.11266,1797.7,1797.4,15.7313761]
[1743417900225,1.11267,1797.7,1797.6,1.11266]
[1743417900730,1.81661,1797.8,1797.7,1.11262]
[1743417901123,7.1238,1797.9,1797.7,1.11262]
[1743417901321,7.39999,1798.1,1797.8,1.5155]
[1743417901524,1.11248,1798.0,1797.9,1.11246]
[1743417901725,6.4649,1798.1,1798.0,1.11243]
[1743417901927,5.0274,1798.1,1798.0,1.11243]
[1743417902716,5.0274,1798.1,1797.9,1.5155]
[1743417902717,1.11243,1798.0,1797.9,2.62795]
[1743417903931,8.23522,1798.1,1798.0,1.11243]
[1743417904128,7.1228,1798.1,1798.0,2.59473]
[1743417904429,8.23517,1798.1,1798.0,2.59473]
[1743417904620,5.02737,1798.1,1798.0,2.59473]
[1743417905622,3.915,1798.1,1798.0,2.59473]
[1743417906128,5.02737,1798.1,1798.0,1.4823]
[1743417906320,5.02737,1798.1,1798.0,2.59473]
[1743417907037,3.915,1798.1,1798.0,2.59473]
[1743417907821,5.02737,1798.1,1798.0,2.59473]
[1743417908231,1.11237,1798.1,1798.0,2.59473]
[1743417909425,1.1206991,1798.2,1798.1,1.11237]
[1743417909629,1.1206991,1798.2,1798.1,1.80607]
[1743417910727,0.0083491,1798.2,1798.1,1.80607]
[1743417911835,0.0083491,1798.2,1798.1,3.28227]
[1743417913823,2.78005,1798.7,1798.1,3.28227]
[1743417913824,4.31983,1798.7,1798.3,2.78048]
[1743417914033,3.15418636,1798.8,1798.7,1.112]
[1743417914231,1.1121,1798.6,1798.5,1.11208]
[1743417914432,6.50068,1798.8,1798.7,1.112]
[1743417915437,8.2420691,1798.9,1798.8,1.11194]
[1743417916031,8.2420691,1798.9,1798.7,2.56698]
[1743417916032,1.11194,1798.8,1798.7,2.56698]
[1743417916227,2.59414,1798.8,1798.7,2.56698]
[1743417916631,2.59414,1798.8,1798.7,1.455]
[1743417916938,1.112,1798.7,1798.6,0.0083491]
[1743417917138,6.533,1798.7,1798.6,0.0083491]
[1743417918230,1.11233,1798.2,1798.1,1.11232]
[1743417918436,1.11233,1798.2,1798.1,2.56732]
[1743417918838,1.4363,1798.2,1798.1,2.56732]
[1743417919039,3.2078,1798.5,1798.1,1.455]
[1743417919238,2.54858,1798.3,1798.2,2.61127]
[1743417919537,2.54855,1798.3,1798.2,2.61127]
[1743417920433,1.4363,1798.3,1798.2,2.61127]
[1743417920631,2.54855,1798.3,1798.2,2.61127]
[1743417920833,1.4363,1798.3,1798.2,2.61127]
[1743417921231,3.2078,1798.5,1798.4,1.11218]
[1743417921429,7.1649,1798.6,1798.5,1.11212]
[1743417921935,1.11212,1798.5,1798.4,2.61114]
[1743417922234,2.49552,1798.5,1798.4,2.61114]
[1743417922832,1.11212,1798.5,1798.4,2.61114]
[1743417923536,5.2964,1798.6,1798.5,1.11212]
[1743417923840,4.3198,1798.7,1798.6,1.11206]
[1743417924040,6.4074,1798.7,1798.6,1.85246]
[1743417924335,6.4074,1798.7,1798.6,3.33366]
[1743417926237,2.4954,1798.7,1798.6,3.33366]
[1743417926937,3.2161491,1798.9,1798.8,1.11194]
[1743417927135,8.5436491,1798.9,1798.8,1.11194]
[1743417927436,5.7445791,1798.9,1798.8,1.11194]
[1743417928339,4.6326491,1798.9,1798.8,1.11194]
[1743417928736,3.2161491,1798.9,1798.8,1.11194]
[1743417930337,4.3280191,1798.9,1798.8,1.11194]
[1743417930841,3.2161491,1798.9,1798.8,1.11194]
[1743417931840,4.7060491,1798.9,1798.8,1.11194]
[1743417932440,3.2161491,1798.9,1798.8,1.11194]
[1743417933242,4.3280191,1798.9,1798.8,1.11194]
[1743417933446,4.7060491,1798.9,1798.8,1.11194]
[1743417933740,0.0083491,1798.9,1798.8,1.11194]
[1743417934443,0.0083491,1798.9,1798.8,2.50634]
[1743417935536,0.0083491,1798.9,1798.8,6.41634]
[1743417935741,3.2078,1799.3,1799.2,1.11169]
[1743417936044,5.3643,1799.5,1799.1,2.77938]
[1743417936243,1.4543,1799.3,1799.2,1.11169]
[1743417936541,1.4543,1799.3,1799.2,1.84499]
[1743417939546,1.4543,1799.3,1799.2,1.11169]
[1743417939742,2.2071,1799.3,1799.2,1.11169]
[1743417940348,2.2071,1799.3,1799.1,0.6949491]
[1743417940549,1.5078,1799.2,1799.1,1.1200991]
[1743417940848,2.61949,1799.2,1799.1,0.0083491]
[1743417941051,2.61949,1799.2,1799.1,1.1200991]
[1743417941243,1.5078,1799.2,1799.1,1.1200991]
[1743417942248,0.0083491,1799.4,1799.3,1.11163]
[1743417942549,1.11163,1799.3,1799.2,1.11164]
[1743417942741,0.7454,1799.3,1799.2,1.11164]
[1743417943145,2.2068,1799.3,1799.2,1.11164]
[1743417944846,1.4614,1799.3,1799.2,1.11164]
[1743417945047,0.0083491,1799.4,1799.3,1.11163]
[1743417945350,1.4697491,1799.4,1799.3,1.11163]
[1743417947250,1.4697491,1799.4,1799.3,2.54883]
[1743417952557,1.4697491,1799.4,1799.3,5.75663]
[1743417953052,0.0083491,1799.4,1799.3,5.75663]
[1743417954850,1.4056,1799.6,1799.5,1.1115]
[1743417955056,0.7028,1799.8,1799.7,1.11138]
[1743417955256,5.77232,1800.0,1799.9,1.11126]
[1743417955654,1.1113,1799.9,1799.8,1.11126]
[1743417956060,1.11138,1799.8,1799.7,1.11136]
[1743417956256,2.50448,1799.8,1799.7,1.11136]
[1743417956660,3.23888,1799.8,1799.7,1.11136]
[1743417957459,2.1275,1799.8,1799.7,1.11136]
[1743417957859,3.23882,1799.8,1799.7,1.11136]
[1743417958060,2.1275,1799.8,1799.7,1.11136]
[1743417958257,3.23882,1799.8,1799.7,1.11136]
[1743417958765,2.1275,1799.8,1799.7,1.11136]
[1743417959759,1.8747091,1800.0,1799.6,4.20419]
[1743417959964,1.4828,1799.8,1799.7,1.11138]
[1743417960171,1.4828,1799.8,1799.7,3.99508]
[1743417961867,0.7634491,1800.0,1799.9,1.11126]
[1743417962066,1.4749491,1800.0,1799.9,1.11126]
[1743417962462,0.0083491,1800.0,1799.9,2.57486]
[1743417964069,1.11098,1800.4,1800.3,1.11095]
[1743417964265,1.4483,1800.4,1800.3,1.11095]
[1743417964457,2.55925,1800.4,1800.3,2.2291]
[1743417964661,2.55925,1800.4,1800.3,3.34011]
[1743417965369,1.4483,1800.4,1800.3,3.34011]
[1743417965963,1.11101,1800.3,1800.2,0.0083491]
[1743417966270,4.31881,1800.3,1800.2,0.0083491]
[1743417968067,5.76841,1800.3,1800.2,0.0083491]
[1743417969072,1.11123,1800.0,1799.9,1.11121]
[1743417969274,4.31896,1800.1,1800.0,1.1112]
[1743417969467,2.56073,1800.1,1800.0,1.1112]
[1743417969672,1.4496,1800.1,1800.0,1.1112]
[1743417969861,2.1961,1800.1,1800.0,1.1112]
[1743417970571,1.4496,1800.1,1800.0,1.1112]
[1743417970772,5.06533,1800.3,1800.0,0.7087]
[1743417971078,3.902,1800.4,1800.3,1.11101]